fUST/lending_fUST_20240824
["ID","MTS","AMOUNT","RATE_DAILY","PERIOD"]
[335738042,1724470252820,-151.0,0.00013971,2]
[335738043,1724470252832,-285.982218,0.00013971,2]
[335738045,1724470252842,-151.0,0.00013971,2]
[335738047,1724470252851,-1375.70694,0.00013971,2]
[335738049,1724470252863,-1375.70694,0.00013971,2]
[335738051,1724470252872,-198.403384,0.00013971,2]
[335738053,1724470252881,-198.403384,0.00013971,2]
[335738054,1724470252891,-151.0,0.00013971,2]
[335738056,1724470252901,-216.493282,0.00013971,2]
[335738058,1724470252910,-171.090052,0.00013971,2]
[335738060,1724470252921,-171.090052,0.00013971,2]
[335738061,1724470252931,-152.236117,0.00013971,2]
[335738063,1724470252940,-2134.705053,0.00013971,2]
[335738065,1724470252950,-2134.705053,0.00013971,2]
[335738067,1724470252960,-1060.69,0.00013971,2]
[335738069,1724470252970,-1060.69,0.00013971,2]
[335738071,1724470252980,-1060.69,0.00013971,2]
[335738072,1724470252989,-1060.69,0.00013971,2]
[335738074,1724470252999,-1060.80066814,0.00013971,2]
[335738076,1724470253009,-197.123887,0.00013971,2]
[335738078,1724470253019,-448.489067,0.00013971,2]
[335738080,1724470253029,-197.123887,0.00013971,2]
[335738081,1724470253039,-448.489067,0.00013971,2]
[335738083,1724470253049,-1435.12924868,0.00013971,2]
[335738085,1724470253059,-813.1101012,0.00013971,2]
[335738087,1724470253069,-237.499296,0.00013972,2]
[335738089,1724470253079,-151.0,0.00013972,2]
[335738090,1724470253088,-151.0,0.00013972,2]
[335738092,1724470253097,-151.0,0.00013972,2]
[335738094,1724470253107,-151.0,0.00013972,2]
[335738096,1724470253118,-204.026499,0.00013972,2]
[335738098,1724470253127,-204.026499,0.00013972,2]
[335738099,1724470253136,-204.026499,0.00013972,2]
[335738101,1724470253146,-204.026499,0.00013972,2]
[335738103,1724470253155,-204.026499,0.00013972,2]
[335738105,1724470253165,-204.026499,0.00013972,2]
[335738107,1724470253174,-204.026499,0.00013972,2]
[335738108,1724470253183,-204.026499,0.00013972,2]
[335738110,1724470253193,-151.0,0.00013972,2]
[335738112,1724470253202,-151.0,0.00013972,2]
[335738114,1724470253211,-151.0,0.00013972,2]
[335738116,1724470253221,-206.256484,0.00013972,2]
[335738118,1724470253231,-151.0,0.00013972,2]
[335738119,1724470253240,-151.0,0.00013972,2]
[335738121,1724470253249,-151.0,0.00013972,2]
[335738123,1724470253259,-151.0,0.00013972,2]
[335738125,1724470253268,-151.0,0.00013972,2]
[335738127,1724470253278,-151.0,0.00013972,2]
[335738128,1724470253288,-151.0,0.00013972,2]
[335738130,1724470253298,-618.636103,0.00013972,2]
[335738132,1724470253307,-618.636103,0.00013972,2]
[335738134,1724470253316,-618.636103,0.00013972,2]
[335738135,1724470253326,-618.636103,0.00013972,2]
[335738137,1724470253336,-618.636103,0.00013972,2]
[335738139,1724470253345,-618.636103,0.00013972,2]
[335738141,1724470253355,-618.636103,0.00013972,2]
[335738143,1724470253364,-618.636103,0.00013972,2]
[335738144,1724470253373,-391.300218,0.00013972,2]
[335738146,1724470253382,-391.300218,0.00013972,2]
[335738148,1724470253392,-391.300218,0.00013972,2]
[335738150,1724470253401,-391.300218,0.00013972,2]
[335738151,1724470253410,-391.300218,0.00013972,2]
[335738153,1724470253419,-391.300218,0.00013972,2]
[335738155,1724470253429,-500.0,0.00013972,2]
[335738157,1724470253439,-285.92282374,0.00013972,2]
[335738159,1724470253448,-736.47,0.00013972,2]
[335738161,1724470253457,-317.59539575,0.00013972,2]
[335738163,1724470253467,-500.0,0.00013972,2]
[335738164,1724470253476,-225.714086,0.00013972,2]
[335738165,1724470253486,-500.0,0.00013972,2]
[335738166,1724470253495,-225.714086,0.00013972,2]
[335738167,1724470253504,-225.714086,0.00013972,2]
[335738168,1724470253514,-225.714086,0.00013972,2]
[335738169,1724470253527,-225.714086,0.00013972,2]
[335738170,1724470253536,-225.714086,0.00013972,2]
[335738171,1724470253545,-433.15344614,0.00013972,2]
[335738172,1724470253554,-500.0,0.00013972,2]
[335738173,1724470253564,-531.77767104,0.00013972,2]
[335738174,1724470253573,-643.50200613,0.00013972,2]
[335738175,1724470253583,-377.1852082,0.00013972,2]
[335738176,1724470253591,-500.0,0.00013972,2]
[335738177,1724470253603,-500.0,0.00013972,2]
[335738178,1724470253613,-500.0,0.00013972,2]
[335738179,1724470253622,-735.46,0.00013972,2]
[335738180,1724470253632,-500.0,0.00013972,2]
[335738182,1724470253641,-500.0,0.00013972,2]
[335738183,1724470253650,-500.0,0.00013972,2]
[335738185,1724470253659,-500.0,0.00013972,2]
[335738186,1724470253669,-500.0,0.00013972,2]
[335738188,1724470253678,-500.0,0.00013972,2]
[335738190,1724470253688,-1021.36,0.00013972,2]
[335738192,1724470253698,-751.47,0.00013972,2]
[335738194,1724470253707,-790.25,0.00013972,2]
[335738196,1724470253716,-1132.66,0.00013972,2]
[335738199,1724470253726,-500.0,0.00013972,2]
[335738200,1724470253736,-151.0,0.00013972,2]
[335738202,1724470253745,-1321.28,0.00013972,2]
[335738204,1724470253755,-151.0,0.00013972,2]
[335738206,1724470253764,-151.0,0.00013972,2]
[335738208,1724470253774,-151.0,0.00013972,2]
[335738210,1724470253783,-500.0,0.00013972,2]
[335738212,1724470253792,-500.0,0.00013972,2]
[335738214,1724470253801,-151.0,0.00013972,2]
[335738216,1724470253811,-151.338408,0.00013972,2]
[335738218,1724470253820,-659.14,0.00013972,2]
[335738220,1724470253829,-500.0,0.00013972,2]
[335738222,1724470253839,-500.0,0.00013972,2]
[335738224,1724470253848,-500.0,0.00013972,2]
[335738226,1724470253857,-500.0,0.00013972,2]
[335738228,1724470253867,-840.87,0.00013972,2]
[335738230,1724470253877,-500.0,0.00013972,2]
[335738232,1724470253886,-151.386232,0.00013972,2]
[335738234,1724470253895,-500.0,0.00013972,2]
[335738236,1724470253904,-339.20726596,0.00013972,2]
[335738238,1724470253914,-500.0,0.00013972,2]
[335738240,1724470253923,-500.0,0.00013972,2]
[335738242,1724470253933,-548.20086075,0.00013972,2]
[335738244,1724470253942,-500.0,0.00013972,2]
[335738246,1724470253951,-1007.1,0.00013972,2]
[335738248,1724470253961,-500.0,0.00013972,2]
[335738250,1724470253970,-500.0,0.00013972,2]
[335738252,1724470253980,-500.0,0.00013972,2]
[335738254,1724470253989,-500.0,0.00013972,2]
[335738256,1724470253998,-518.9,0.00013972,2]
[335738258,1724470254008,-874.32,0.00013972,2]
[335738260,1724470254018,-596.26,0.00013972,2]
[335738262,1724470254027,-500.0,0.00013972,2]
[335738264,1724470254036,-500.0,0.00013972,2]
[335738266,1724470254046,-500.0,0.00013972,2]
[335738269,1724470254055,-2422.32,0.00013972,2]
[335738271,1724470254065,-500.0,0.00013972,2]
[335738273,1724470254075,-150.0,0.00013972,2]
[335738274,1724470254083,-983.37,0.00013972,2]
[335738276,1724470254093,-500.0,0.00013972,2]
[335738278,1724470254102,-500.0,0.00013972,2]
[335738280,1724470254112,-500.0,0.00013972,2]
[335738283,1724470254122,-500.0,0.00013972,2]
[335738285,1724470254131,-500.0,0.00013972,2]
[335738287,1724470254141,-653.94,0.00013972,2]
[335738289,1724470254150,-500.0,0.00013972,2]
[335738291,1724470254159,-500.0,0.00013972,2]
[335738293,1724470254168,-583.92,0.00013972,2]
[335738295,1724470254177,-500.0,0.00013972,2]
[335738297,1724470254186,-722.04,0.00013972,2]
[335738299,1724470254196,-500.0,0.00013972,2]
[335738301,1724470254205,-500.0,0.00013972,2]
[335738303,1724470254215,-500.0,0.00013972,2]
[335738305,1724470254224,-161.54525544,0.00013972,2]
[335738307,1724470254233,-220.157913,0.00013972,2]
[335738309,1724470254243,-220.157913,0.00013972,2]
[335738311,1724470254252,-220.157913,0.00013972,2]
[335738313,1724470254261,-220.157913,0.00013972,2]
[335738315,1724470254271,-220.157913,0.00013972,2]
[335738317,1724470254280,-220.157913,0.00013972,2]
[335738319,1724470254289,-220.157913,0.00013972,2]
[335738321,1724470254299,-220.157913,0.00013972,2]
[335738323,1724470254308,-220.157913,0.00013972,2]
[335738325,1724470254319,-500.0,0.00013972,2]
[335738327,1724470254327,-220.157913,0.00013972,2]
[335738329,1724470254337,-500.0,0.00013972,2]
[335738331,1724470254347,-500.0,0.00013972,2]
[335738333,1724470254356,-172.52369908,0.00013972,2]
[335738335,1724470254366,-577.65,0.00013972,2]
[335738337,1724470254375,-500.0,0.00013972,2]
[335738339,1724470254385,-500.0,0.00013972,2]
[335738340,1724470254394,-500.0,0.00013972,2]
[335738342,1724470254403,-275.90895293,0.00013972,2]
[335738344,1724470254412,-500.0,0.00013972,2]
[335738346,1724470254422,-500.0,0.00013972,2]
[335738348,1724470254431,-500.0,0.00013972,2]
[335738350,1724470254440,-500.0,0.00013972,2]
[335738352,1724470254450,-500.0,0.00013972,2]
[335738354,1724470254459,-500.0,0.00013972,2]
[335738356,1724470254469,-500.0,0.00013972,2]
[335738358,1724470254478,-500.0,0.00013972,2]
[335738360,1724470254487,-151.0,0.00013972,2]
[335738362,1724470254498,-151.0,0.00013972,2]
[335738364,1724470254507,-151.0,0.00013972,2]
[335738366,1724470254516,-151.0,0.00013972,2]
[335738368,1724470254529,-151.0,0.00013972,2]
[335738370,1724470254538,-500.0,0.00013972,2]
[335738372,1724470254547,-500.0,0.00013972,2]
[335738374,1724470254556,-151.0,0.00013972,2]
[335738376,1724470254566,-500.0,0.00013972,2]
[335738378,1724470254576,-151.0,0.00013972,2]
[335738380,1724470254585,-500.0,0.00013972,2]
[335738382,1724470254595,-156.094882,0.00013972,2]
[335738384,1724470254605,-500.0,0.00013972,2]
[335738386,1724470254617,-547.69074638,0.00013972,2]
[335738388,1724470254626,-151.0,0.00013972,2]
[335738390,1724470254637,-151.0,0.00013972,2]
[335738392,1724470254646,-151.0,0.00013972,2]
[335738394,1724470254657,-151.0,0.00013972,2]
[335738396,1724470254666,-151.0,0.00013972,2]
[335738398,1724470254676,-153.505588,0.00013972,2]
[335738400,1724470254687,-500.0,0.00013972,2]
[335738402,1724470254696,-590.86,0.00013972,2]
[335738404,1724470254705,-1008.99,0.00013972,2]
[335738406,1724470254715,-500.0,0.00013972,2]
[335738408,1724470254724,-254.71393384,0.00013972,2]
[335738410,1724470254734,-858.84,0.00013972,2]
[335738412,1724470254743,-500.0,0.00013972,2]
[335738414,1724470254752,-500.0,0.00013972,2]
[335738416,1724470254762,-500.0,0.00013972,2]
[335738418,1724470254772,-1345.35,0.00013972,2]
[335738420,1724470254781,-500.0,0.00013972,2]
[335738422,1724470254791,-500.0,0.00013972,2]
[335738424,1724470254800,-500.0,0.00013972,2]
[335738426,1724470254809,-500.0,0.00013972,2]
[335738428,1724470254819,-500.0,0.00013972,2]
[335738430,1724470254829,-500.0,0.00013972,2]
[335738432,1724470254838,-574.69944032,0.00013972,2]
[335738434,1724470254847,-500.0,0.00013972,2]
[335738436,1724470254857,-383.136542,0.00013972,2]
[335738438,1724470254868,-500.0,0.00013972,2]
[335738440,1724470254878,-500.0,0.00013972,2]
[335738442,1724470254887,-383.136542,0.00013972,2]
[335738444,1724470254897,-383.136542,0.00013972,2]
[335738446,1724470254906,-383.136542,0.00013972,2]
[335738448,1724470254915,-500.0,0.00013972,2]
[335738450,1724470254925,-383.136542,0.00013972,2]
[335738452,1724470254934,-500.25966525,0.00013972,2]
[335738454,1724470254944,-383.136542,0.00013972,2]
[335738456,1724470254954,-383.136542,0.00013972,2]
[335738458,1724470254964,-500.0,0.00013972,2]
[335738460,1724470254973,-500.0,0.00013972,2]
[335738462,1724470254982,-383.136542,0.00013972,2]
[335738464,1724470254991,-383.136542,0.00013972,2]
[335738466,1724470255001,-383.136542,0.00013972,2]
[335738469,1724470255010,-500.0,0.00013972,2]
[335738471,1724470255020,-500.0,0.00013972,2]
[335738473,1724470255030,-151.0,0.00013972,2]
[335738475,1724470255039,-500.0,0.00013972,2]
[335738477,1724470255048,-151.0,0.00013972,2]
[335738479,1724470255058,-151.0,0.00013972,2]
[335738481,1724470255067,-151.398704,0.00013972,2]
[335738483,1724470255076,-500.0,0.00013972,2]
[335738485,1724470255086,-500.0,0.00013972,2]
[335738487,1724470255095,-500.0,0.00013972,2]
[335738489,1724470255105,-500.0,0.00013972,2]
[335738491,1724470255114,-576.46,0.00013972,2]
[335738493,1724470255123,-500.0,0.00013972,2]
[335738495,1724470255132,-500.0,0.00013972,2]
[335738497,1724470255141,-500.0,0.00013972,2]
[335738499,1724470255150,-3439.97,0.00013972,2]
[335738501,1724470255161,-916.81,0.00013972,2]
[335738503,1724470255170,-500.0,0.00013972,2]
[335738505,1724470255179,-529.54190491,0.00013972,2]
[335738507,1724470255189,-559.99,0.00013972,2]
[335738509,1724470255200,-500.0,0.00013972,2]
[335738511,1724470255209,-500.0,0.00013972,2]
[335738513,1724470255219,-151.195354,0.00013972,2]
[335738515,1724470255229,-151.0,0.00013972,2]
[335738517,1724470255238,-151.0,0.00013972,2]
[335738519,1724470255248,-581.01,0.00013972,2]
[335738521,1724470255257,-151.0,0.00013972,2]
[335738523,1724470255266,-151.0,0.00013972,2]
[335738525,1724470255276,-151.0,0.00013972,2]
[335738527,1724470255285,-566.06,0.00013972,2]
[335738529,1724470255295,-151.0,0.00013972,2]
[335738531,1724470255305,-151.0,0.00013972,2]
[335738533,1724470255314,-151.0,0.00013972,2]
[335738535,1724470255323,-168.56645819,0.00013972,2]
[335738537,1724470255334,-182.53256924,0.00013972,2]
[335738702,1724470257649,-500.0,0.00013698,2]
[335738704,1724470257661,-500.0,0.00013698,2]
[335738705,1724470257670,-527.90544,0.00013699,2]
[335738707,1724470257679,-153.0,0.00013946,2]
[335738709,1724470257689,-527.90544,0.00013961,2]
[335738711,1724470257699,-317.46743076,0.00013972,2]
[335738713,1724470257709,-500.0,0.00013972,2]
[335738715,1724470257718,-500.0,0.00013972,2]
[335738717,1724470257727,-500.0,0.00013972,2]
[335738719,1724470257737,-1275.719266,0.00013972,2]
[335738721,1724470257746,-502.16907928,0.00013972,2]
[335738723,1724470257755,-1275.719266,0.00013972,2]
[335738725,1724470257765,-151.0,0.00013972,2]
[335738727,1724470257775,-1275.719266,0.00013972,2]
[335738729,1724470257786,-151.0,0.00013972,2]
[335738731,1724470257797,-1275.719266,0.00013972,2]
[335738733,1724470257807,-151.0,0.00013972,2]
[335738735,1724470257817,-1275.719266,0.00013972,2]
[335738737,1724470257826,-151.0,0.00013972,2]
[335738739,1724470257836,-1275.719266,0.00013972,2]
[335738741,1724470257845,-1275.719266,0.00013972,2]
[335738743,1724470257855,-442.84971296,0.00013972,2]
[335738746,1724470257869,-832.86955304,0.00013972,2]
[335738747,1724470257880,-1275.719266,0.00013972,2]
[335738748,1724470257889,-500.0,0.00013972,2]
[335738750,1724470257899,-887.15,0.00013972,2]
[335738752,1724470257908,-1275.719266,0.00013972,2]
[335738754,1724470257918,-46.56708838,0.00013972,2]
[335738822,1724470258904,19522.97338965,0.00012,2]
[335738989,1724470420124,511.5483825,0.00012,2]
[335739012,1724470597762,504.07,0.00027,120]
[335739013,1724470606743,500.0,0.00027,120]
[335739022,1724471128240,3267.9956589,0.00012048,2]
[335739023,1724471171760,19613.62133728,0.00012048,2]
[335739024,1724471221977,171.81057292,0.00012048,2]
[335739026,1724471226903,1671.98997101,0.00012048,2]
[335739027,1724471227166,-191.849272,0.00012548,2]
[335739028,1724471227188,-1825.70149185,0.00012551,2]
[335739029,1724471227210,-129.75555937,0.00012583,2]
[335739030,1724471229151,-62.09371263,0.00012583,2]
[335739031,1724471229174,-191.849272,0.00012617,2]
[335739032,1724471229197,-191.849272,0.00012651,2]
[335739033,1724471229220,-191.849272,0.00012686,2]
[335739034,1724471229241,-191.849272,0.0001272,2]
[335739035,1724471229264,-191.849272,0.00012755,2]
[335739036,1724471229288,-191.849272,0.00012789,2]
[335739037,1724471229311,-191.849272,0.00012823,2]
[335739038,1724471229333,-191.849272,0.00012858,2]
[335739039,1724471229355,-191.849272,0.00012892,2]
[335739040,1724471229376,-1500.0,0.00012898,2]
[335739041,1724471229399,-191.849272,0.00012927,2]
[335739042,1724471229421,-191.849272,0.00012961,2]
[335739043,1724471229445,-191.849272,0.00012996,2]
[335739044,1724471229469,-300.0,0.00012999,2]
[335739045,1724471229492,-8358.02366207,0.00013,2]
[335739046,1724471229515,-1000.0,0.00013,2]
[335739047,1724471229546,-175.16347497,0.0001303,2]
[335739049,1724471233108,-16.68579703,0.0001303,2]
[335739050,1724471233136,-191.849272,0.00013064,2]
[335739051,1724471233163,-134.64481225,0.00013099,2]
[335739052,1724471241335,-57.20445975,0.00013099,2]
[335739053,1724471241359,-191.849272,0.00013133,2]
[335739054,1724471241381,-191.849272,0.00013168,2]
[335739055,1724471241403,-153.0,0.00013178,2]
[335739056,1724471241425,-153.0,0.00013178,2]
[335739057,1724471241448,-153.0,0.00013178,2]
[335739058,1724471241471,-191.849272,0.00013202,2]
[335739059,1724471241494,-153.0,0.000133,2]
[335739060,1724471241518,-1850.58035834,0.00013497,3]
[335739061,1724471241542,-187.99795715,0.00013598,2]
[335739062,1724471241565,-1224.71572069,0.00013598,2]
[335739063,1724471241587,-23449.94050704,0.00013598,2]
[335739161,1724471438580,-300.0,0.00013499,2]
[335739163,1724471438591,-10698.71788242,0.000135,2]
[335739166,1724471438604,-407.28211758,0.000135,2]
[335739168,1724471438615,-1955.02131528,0.00013567,2]
[335739170,1724471438627,-751.99182844,0.00013598,2]
[335739172,1724471438639,-76440.65682296,0.00013598,2]
[335739175,1724471438649,-500.0,0.00013698,2]
[335739177,1724471438660,-1099.67,0.00013698,2]
[335739179,1724471438670,-500.0,0.00013698,2]
[335739181,1724471438687,-579.20773376,0.00013698,2]
[335739183,1724471438696,-500.0,0.00013698,2]
[335739185,1724471438705,-500.0,0.00013698,2]
[335739187,1724471438715,-314.2041079,0.00013698,2]
[335739189,1724471438727,-500.0,0.00013698,2]
[335739192,1724471438738,-500.0,0.00013698,2]
[335739194,1724471438749,-500.0,0.00013698,2]
[335739196,1724471438760,-500.0,0.00013698,2]
[335739198,1724471438771,-500.0,0.00013698,2]
[335739200,1724471438783,-412.22016198,0.00013698,2]
[335739203,1724471438793,-500.0,0.00013698,2]
[335739205,1724471438804,-500.0,0.00013698,2]
[335739207,1724471438815,-500.0,0.00013698,2]
[335739209,1724471438826,-500.0,0.00013698,2]
[335739211,1724471438837,-500.0,0.00013698,2]
[335739214,1724471438848,-500.0,0.00013698,2]
[335739216,1724471438859,-500.0,0.00013698,2]
[335739218,1724471438870,-501.86672795,0.00013698,2]
[335739220,1724471438881,-500.0,0.00013698,2]
[335739222,1724471438892,-500.0,0.00013698,2]
[335739224,1724471438903,-1006.46972921,0.00013698,2]
[335739227,1724471438915,-1006.46972921,0.00013698,2]
[335739229,1724471438926,-1006.46972921,0.00013698,2]
[335739231,1724471438937,-1006.46972921,0.00013698,2]
[335739233,1724471438947,-1006.46972921,0.00013698,2]
[335739235,1724471438956,-1006.46972921,0.00013698,2]
[335739237,1724471438966,-1006.46972921,0.00013698,2]
[335739239,1724471438976,-1006.46972921,0.00013698,2]
[335739242,1724471438986,-1006.46972921,0.00013698,2]
[335739244,1724471438997,-1006.46972921,0.00013698,2]
[335739246,1724471439007,-1006.46972921,0.00013698,2]
[335739248,1724471439018,-1006.46972921,0.00013698,2]
[335739250,1724471439028,-1006.46972921,0.00013698,2]
[335739252,1724471439040,-1006.46972921,0.00013698,2]
[335739254,1724471439052,-500.0,0.00013698,2]
[335739256,1724471439062,-500.0,0.00013698,2]
[335739258,1724471439072,-500.0,0.00013698,2]
[335739260,1724471439082,-1177.67898206,0.00013698,2]
[335739262,1724471439092,-1177.67898206,0.00013698,2]
[335739264,1724471439102,-1177.67898206,0.00013698,2]
[335739266,1724471439112,-500.0,0.00013698,2]
[335739268,1724471439121,-1177.67898206,0.00013698,2]
[335739270,1724471439130,-500.0,0.00013698,2]
[335739272,1724471439140,-689.97,0.00013698,2]
[335739274,1724471439150,-500.0,0.00013698,2]
[335739276,1724471439159,-500.0,0.00013698,2]
[335739278,1724471439169,-500.0,0.00013698,2]
[335739280,1724471439180,-500.0,0.00013698,2]
[335739282,1724471439189,-500.0,0.00013698,2]
[335739284,1724471439199,-500.0,0.00013698,2]
[335739286,1724471439208,-500.0,0.00013698,2]
[335739288,1724471439217,-500.0,0.00013698,2]
[335739290,1724471439227,-500.0,0.00013698,2]
[335739292,1724471439236,-724.2,0.00013698,2]
[335739294,1724471439245,-692.15,0.00013698,2]
[335739296,1724471439255,-500.0,0.00013698,2]
[335739298,1724471439264,-2073.62,0.00013698,2]
[335739300,1724471439274,-504.06,0.00013698,2]
[335739302,1724471439284,-1259.89,0.00013698,2]
[335739304,1724471439294,-500.0,0.00013698,2]
[335739306,1724471439303,-500.0,0.00013698,2]
[335739308,1724471439312,-500.0,0.00013698,2]
[335739310,1724471439322,-500.0,0.00013698,2]
[335739312,1724471439331,-1254.81,0.00013698,2]
[335739314,1724471439340,-500.0,0.00013698,2]
[335739316,1724471439350,-821.27,0.00013698,2]
[335739318,1724471439359,-500.0,0.00013698,2]
[335739320,1724471439369,-500.0,0.00013698,2]
[335739322,1724471439378,-500.0,0.00013698,2]
[335739324,1724471439388,-566.86701025,0.00013698,2]
[335739326,1724471439401,-500.0,0.00013698,2]
[335739328,1724471439411,-500.0,0.00013698,2]
[335739330,1724471439421,-605.2,0.00013698,2]
[335739332,1724471439431,-207.27455495,0.00013698,2]
[335739333,1724471439440,-500.0,0.00013698,2]
[335739334,1724471439450,-500.0,0.00013698,2]
[335739335,1724471439459,-500.0,0.00013698,2]
[335739336,1724471439468,-500.0,0.00013698,2]
[335739337,1724471439477,-1524.26,0.00013698,2]
[335739338,1724471439487,-500.0,0.00013698,2]
[335739339,1724471439496,-500.0,0.00013698,2]
[335739340,1724471439505,-500.0,0.00013698,2]
[335739341,1724471439514,-500.0,0.00013698,2]
[335739342,1724471439523,-556.26,0.00013698,2]
[335739343,1724471439533,-500.0,0.00013698,2]
[335739344,1724471439542,-500.0,0.00013698,2]
[335739345,1724471439551,-500.0,0.00013698,2]
[335739346,1724471439560,-1618.54,0.00013698,2]
[335739347,1724471439569,-500.0,0.00013698,2]
[335739348,1724471439578,-500.0,0.00013698,2]
[335739349,1724471439589,-500.0,0.00013698,2]
[335739350,1724471439598,-500.0,0.00013698,2]
[335739351,1724471439607,-500.0,0.00013698,2]
[335739352,1724471439616,-1238.19,0.00013698,2]
[335739354,1724471439626,-500.0,0.00013698,2]
[335739356,1724471439635,-500.77864388,0.00013698,2]
[335739359,1724471439645,-500.0,0.00013698,2]
[335739360,1724471439653,-500.0,0.00013698,2]
[335739363,1724471439663,-500.0,0.00013698,2]
[335739365,1724471439673,-500.0,0.00013698,2]
[335739367,1724471439682,-500.0,0.00013698,2]
[335739368,1724471439693,-1294.37,0.00013698,2]
[335739369,1724471439703,-616.7,0.00013698,2]
[335739370,1724471439712,-500.0,0.00013698,2]
[335739371,1724471439722,-500.0,0.00013698,2]
[335739372,1724471439731,-500.0,0.00013698,2]
[335739373,1724471439740,-155.12815248,0.00013698,2]
[335739374,1724471439750,-500.0,0.00013698,2]
[335739375,1724471439760,-500.0,0.00013698,2]
[335739376,1724471439770,-500.0,0.00013698,2]
[335739377,1724471439780,-500.0,0.00013698,2]
[335739378,1724471439790,-832.51,0.00013698,2]
[335739379,1724471439799,-500.0,0.00013698,2]
[335739380,1724471439808,-500.0,0.00013698,2]
[335739381,1724471439817,-500.0,0.00013698,2]
[335739382,1724471439827,-500.0,0.00013698,2]
[335739383,1724471439837,-500.0,0.00013698,2]
[335739385,1724471439848,-529.54190491,0.00013698,2]
[335739387,1724471439858,-501.81230016,0.00013698,2]
[335739389,1724471439867,-614.56,0.00013698,2]
[335739392,1724471439878,-315.43926399,0.00013698,2]
[335739394,1724471439888,-500.0,0.00013698,2]
[335739396,1724471439901,-500.0,0.00013698,2]
[335739398,1724471439912,-500.0,0.00013698,2]
[335739400,1724471439923,-638.25,0.00013698,2]
[335739403,1724471439934,-500.41907596,0.00013698,2]
[335739405,1724471439945,-500.0,0.00013698,2]
[335739407,1724471439954,-500.64961572,0.00013698,2]
[335739409,1724471439963,-500.0,0.00013698,2]
[335739411,1724471439973,-500.0,0.00013698,2]
[335739413,1724471439982,-500.0,0.00013698,2]
[335739415,1724471439991,-500.9895342,0.00013698,2]
[335739417,1724471440001,-500.0,0.00013698,2]
[335739419,1724471440010,-500.0,0.00013698,2]
[335739421,1724471440019,-674.17,0.00013698,2]
[335739423,1724471440028,-928.3,0.00013698,2]
[335739425,1724471440037,-691.07,0.00013698,2]
[335739427,1724471440046,-500.0,0.00013698,2]
[335739429,1724471440056,-500.0,0.00013698,2]
[335739431,1724471440065,-504.04700606,0.00013698,2]
[335739433,1724471440074,-500.0,0.00013698,2]
[335739436,1724471440083,-701.58,0.00013698,2]
[335739440,1724471440093,-2527.31,0.00013698,2]
[335739444,1724471440104,-501.11184243,0.00013698,2]
[335739447,1724471440114,-500.0,0.00013698,2]
[335739450,1724471440125,-936.25,0.00013698,2]
[335739452,1724471440134,-1079.2,0.00013698,2]
[335739454,1724471440146,-177.59616055,0.00013698,2]
[335739456,1724471440158,-500.0,0.00013698,2]
[335739458,1724471440168,-500.0,0.00013698,2]
[335739460,1724471440179,-500.0,0.00013698,2]
[335739462,1724471440189,-500.0,0.00013698,2]
[335739464,1724471440200,-293.91923949,0.00013698,2]
[335739467,1724471440211,-500.0,0.00013698,2]
[335739468,1724471440222,-500.0,0.00013698,2]